bitfinex/quotes_BTCUSD_20240717
["timestamp","ask_amount","ask_price","bid_price","bid_amount"]
[1721204618758,0.07717479,65218.0,65199.0,1.74886974]
[1721204618941,0.00064593,65217.0,65204.0,1.074351]
[1721204619080,0.00064593,65217.0,65204.0,1.25173274]
[1721204619280,0.00064593,65217.0,65211.0,0.154148]
[1721204619490,0.23050679,65218.0,65211.0,0.0238]
[1721204619712,0.07717479,65218.0,65211.0,0.0238]
[1721204619918,0.7813826,65212.0,65211.0,0.0008]
[1721204620139,0.7813826,65212.0,65211.0,0.0238]
[1721204620892,0.7813826,65212.0,65211.0,0.032]
[1721204621080,0.7813826,65212.0,65211.0,0.009]
[1721204621081,1.38335634,65212.0,65211.0,0.009]
[1721204621474,0.40993434,65212.0,65203.0,0.0008]
[1721204621681,0.84399679,65204.0,65203.0,0.0008]
[1721204621885,0.84399679,65204.0,65193.0,0.00212504]
[1721204621886,0.153371,65201.0,65200.0,0.0008]
[1721204622133,0.766857,65201.0,65200.0,0.0008]
[1721204622337,0.07717479,65204.0,65203.0,0.0008]
[1721204622338,0.38390379,65204.0,65203.0,0.0008]
[1721204622487,0.07717479,65211.0,65203.0,0.0008]
[1721204622669,0.07717479,65211.0,65207.0,0.0008]
[1721204622670,0.153355,65208.0,65207.0,0.0008]
[1721204622877,0.53721879,65211.0,65210.0,0.0008]
[1721204623108,0.0781526,65212.0,65211.0,0.0008]
[1721204623335,0.0146526,65212.0,65211.0,0.154148]
[1721204623560,0.0146526,65212.0,65211.0,0.483844]
[1721204623780,0.0154826,65212.0,65211.0,0.483844]
[1721204623981,0.0154826,65212.0,65211.0,0.177148]
[1721204624426,0.0154826,65212.0,65211.0,0.94492174]
[1721204624628,0.0154826,65212.0,65211.0,0.95192174]
[1721204625496,0.0154826,65212.0,65211.0,0.33852974]
[1721204625728,0.0154826,65212.0,65211.0,0.0308]
[1721204626118,0.0154826,65212.0,65211.0,0.17818174]
[1721204626321,0.0154826,65212.0,65211.0,0.95392174]
[1721204626726,0.0154826,65212.0,65211.0,0.95892174]
[1721204627145,0.0154826,65212.0,65211.0,0.94692174]
[1721204627275,0.0154826,65212.0,65211.0,1.00592174]
[1721204628301,0.0154826,65212.0,65211.0,1.31261774]
[1721204628760,0.0154826,65212.0,65211.0,1.26061774]
[1721204628963,0.0154826,65212.0,65211.0,1.26461774]
[1721204629165,0.0154826,65212.0,65211.0,1.31461774]
[1721204629367,0.0154826,65212.0,65211.0,1.44196111]
[1721204629608,0.0154826,65212.0,65211.0,1.73565711]
[1721204629766,0.0154826,65212.0,65211.0,1.87305711]
[1721204629964,0.0154826,65212.0,65211.0,1.97305711]
[1721204630168,0.0154826,65212.0,65211.0,1.99505711]
[1721204630451,0.0154826,65212.0,65211.0,2.69505711]
[1721204630649,0.0154826,65212.0,65211.0,2.88705711]
[1721204631086,0.0154826,65212.0,65211.0,2.90105711]
[1721204631295,0.0154826,65212.0,65211.0,2.90103906]
[1721204631486,0.0154826,65212.0,65211.0,2.87303906]
[1721204631943,0.07717479,65232.0,65231.0,0.154101]
[1721204632175,0.46304871,65236.0,65235.0,0.0008]
[1721204632350,0.00834,65238.0,65237.0,0.460661]
[1721204632574,0.00834,65238.0,65237.0,0.63804274]
[1721204632780,0.00834,65238.0,65237.0,0.33146874]
[1721204632933,0.00834,65238.0,65237.0,0.63804274]
[1721204633367,0.00834,65238.0,65237.0,0.0238]
[1721204633572,0.468193,65238.0,65237.0,0.0238]
[1721204634099,0.00834,65238.0,65237.0,0.0378]
[1721204634307,0.00834,65238.0,65237.0,0.037]
[1721204634555,1.081331,65238.0,65237.0,0.047]
[1721204634759,1.223431,65238.0,65237.0,0.024]
[1721204634961,1.223431,65238.0,65237.0,0.014]
[1721204635382,0.916862,65238.0,65237.0,0.0188]
[1721204635580,0.303724,65238.0,65237.0,0.018]
[1721204635805,0.610293,65238.0,65237.0,0.0188]
[1721204635980,0.610293,65238.0,65237.0,0.0418]
[1721204636194,0.610293,65238.0,65237.0,0.0278]
[1721204636390,0.916862,65238.0,65237.0,0.0328]
[1721204636713,0.916862,65238.0,65237.0,0.028]
[1721204636821,0.916862,65238.0,65237.0,0.024]
[1721204637033,0.916862,65238.0,65237.0,0.001]
[1721204637448,0.916862,65238.0,65237.0,0.0008]
[1721204637657,0.916862,65238.0,65237.0,0.0018]
[1721204637860,0.916862,65238.0,65237.0,0.0028]
[1721204638294,0.916862,65238.0,65237.0,0.001]
[1721204638295,2.12101972,65238.0,65237.0,0.001]
[1721204638486,1.04049074,65238.0,65224.0,0.0498374]
[1721204638688,1.04049074,65238.0,65219.0,0.0008]
[1721204638689,0.21767479,65225.0,65219.0,0.0008]
[1721204638924,0.21767479,65225.0,65204.0,0.46304871]
[1721204638925,0.153329,65219.0,65218.0,0.0008]
[1721204639128,0.766647,65219.0,65218.0,0.0008]
[1721204639351,0.766647,65219.0,65211.0,0.04970156]
[1721204639352,0.153342,65214.0,65211.0,0.04970156]
[1721204639558,0.306677,65216.0,65212.0,0.00212504]
[1721204639559,0.15334,65215.0,65212.0,0.00212504]
[1721204639807,0.21767479,65225.0,65216.0,0.306672]
[1721204639808,0.15332,65223.0,65216.0,0.306672]
[1721204640036,0.15332,65223.0,65208.0,0.00306663]
[1721204640037,0.0623,65232.0,65222.0,0.30664]
[1721204640240,0.153301,65231.0,65225.0,0.153313]
[1721204640441,0.153301,65231.0,65213.0,0.05]
[1721204640442,0.0623,65232.0,65226.0,0.00306604]
[1721204640649,0.0623,65232.0,65218.0,0.04970554]
[1721204640650,0.15394693,65231.0,65218.0,0.04970554]
[1721204640795,0.15394693,65231.0,65219.0,0.023]
[1721204640796,0.153302,65231.0,65219.0,0.023]
[1721204641022,0.306584,65235.0,65220.0,0.20438174]
[1721204641223,0.00834,65238.0,65221.0,0.17036566]
[1721204641424,0.00834,65238.0,65222.0,0.15438174]
[1721204641425,0.161626,65238.0,65222.0,0.15438174]
[1721204641624,0.00834,65238.0,65232.0,0.153297]
[1721204641867,0.00834,65238.0,65229.0,0.306609]
[1721204642095,0.00834,65238.0,65237.0,0.153287]
[1721204642279,0.00834,65238.0,65237.0,0.61424274]
[1721204642484,0.00834,65238.0,65237.0,0.63724274]
[1721204642814,0.00834,65238.0,65237.0,0.94381674]
[1721204643019,0.00834,65238.0,65237.0,0.63724274]
[1721204643233,0.00834,65238.0,65237.0,0.94381674]
[1721204643471,0.00834,65238.0,65237.0,0.63724274]
[1721204643707,0.00834,65238.0,65237.0,0.64224274]
[1721204643901,0.00834,65238.0,65237.0,0.94881674]
[1721204644304,0.00834,65238.0,65237.0,0.95081674]
[1721204644907,0.00834,65238.0,65237.0,1.45649074]
[1721204645302,0.00834,65238.0,65237.0,1.58378245]
[1721204645964,0.00834,65238.0,65237.0,1.57877536]
[1721204646326,0.00934,65238.0,65237.0,1.59277536]
[1721204646579,0.00834,65238.0,65237.0,1.98534936]
[1721204646736,0.0001,65243.0,65242.0,1.122925]
[1721204646935,0.0001,65243.0,65242.0,1.83414136]
[1721204647147,0.0001,65243.0,65242.0,1.61459136]
[1721204648009,0.0001,65243.0,65242.0,2.37859136]
[1721204648328,0.0001,65243.0,65242.0,2.32859136]
[1721204648535,0.0001,65243.0,65242.0,1.32204136]
[1721204648754,0.0001,65243.0,65242.0,0.29566636]
[1721204648967,0.0001,65243.0,65242.0,0.014]
[1721204648968,0.459919,65243.0,65242.0,0.014]
[1721204649383,0.459919,65243.0,65242.0,0.028]
[1721204649592,0.153373,65243.0,65242.0,0.014]
[1721204649801,0.0001,65243.0,65242.0,0.014]
[1721204650012,0.0001,65243.0,65242.0,0.94875674]
[1721204650219,0.0001,65243.0,65242.0,1.06575674]
[1721204650425,0.0001,65243.0,65242.0,1.37230674]
[1721204650633,0.0001,65243.0,65242.0,1.43030674]
[1721204650841,0.0001,65243.0,65242.0,1.39230674]
[1721204651043,0.0001,65243.0,65242.0,1.45730674]
[1721204651254,0.0001,65243.0,65242.0,1.55730674]
[1721204651458,0.0001,65243.0,65242.0,1.54530674]
[1721204651667,0.0001,65243.0,65242.0,1.55930674]
[1721204651871,0.00834,65246.0,65245.0,1.322876]
[1721204652084,0.00834,65246.0,65245.0,1.72752721]
[1721204652716,0.00834,65246.0,65245.0,1.67752721]
[1721204652926,0.00834,65246.0,65245.0,2.03406321]
[1721204653142,0.00834,65246.0,65245.0,2.04806321]
[1721204653974,0.00834,65246.0,65245.0,1.57825774]
[1721204654407,0.00834,65246.0,65245.0,1.59225774]
[1721204654638,0.00834,65246.0,65245.0,1.62825774]
[1721204654844,0.00834,65246.0,65245.0,1.64225774]
[1721204655076,0.00834,65246.0,65245.0,1.59225774]
[1721204655310,0.00834,65246.0,65245.0,1.76953138]
[1721204655719,0.00834,65246.0,65245.0,2.04806738]
[1721204655928,0.00834,65246.0,65245.0,1.74153138]
[1721204656154,0.00834,65246.0,65245.0,1.75553138]
[1721204656357,0.00834,65246.0,65245.0,2.06206738]
[1721204657420,0.00834,65246.0,65245.0,2.1008492]
[1721204657622,0.00834,65246.0,65245.0,2.06206738]
[1721204658279,0.00834,65246.0,65245.0,1.93479374]
[1721204658518,0.00834,65246.0,65245.0,2.10083454]
[1721204658722,0.00834,65246.0,65245.0,2.06205325]
[1721204659860,0.00834,65246.0,65245.0,2.06205275]
[1721204660525,0.00834,65246.0,65245.0,2.39935875]
[1721204660967,0.00834,65246.0,65245.0,3.09935875]
[1721204661381,0.00834,65246.0,65245.0,3.0993499]
[1721204661808,0.07717479,65262.0,65251.0,1.122778]
[1721204662023,0.07717479,65262.0,65251.0,1.4774099]
[1721204662230,0.07717479,65262.0,65251.0,0.7413939]
[1721204662231,0.306462,65261.0,65251.0,0.7413939]
[1721204662433,0.07717479,65262.0,65251.0,0.61414374]
[1721204662638,0.07717479,65262.0,65251.0,0.92065174]
[1721204663460,0.07717479,65269.0,65251.0,0.94865174]
[1721204663662,0.07717479,65269.0,65251.0,1.25515974]
[1721204663876,0.07717479,65269.0,65251.0,1.29115974]
[1721204664085,0.1475,65272.0,65251.0,1.31415974]
[1721204664299,0.00064593,65271.0,65251.0,1.76033669]
[1721204664506,0.1475,65272.0,65251.0,1.86032896]
[1721204664932,0.00064593,65271.0,65251.0,1.88532896]
[1721204665137,0.00064593,65271.0,65251.0,2.34810696]
[1721204665338,0.0628,65274.0,65251.0,2.05757585]
[1721204665553,0.0628,65274.0,65251.0,2.01082896]
[1721204665774,0.00064593,65273.0,65251.0,2.01082896]
[1721204666154,0.00064593,65273.0,65251.0,2.01382896]
[1721204666535,0.00064593,65273.0,65251.0,1.99982896]
[1721204666735,0.00064593,65273.0,65251.0,1.51782096]
[1721204666736,0.306424,65269.0,65251.0,1.51782096]
[1721204666938,0.0628,65274.0,65251.0,1.48082096]
[1721204666939,0.0801,65265.0,65251.0,1.48082096]
[1721204667344,0.0801,65265.0,65251.0,1.49482096]
[1721204667544,0.00334,65252.0,65251.0,1.49482386]
[1721204667720,0.00334,65252.0,65251.0,1.54482386]
[1721204667920,0.00334,65252.0,65251.0,1.82333186]
[1721204668323,0.00334,65252.0,65251.0,1.86033186]
[1721204669022,0.00334,65252.0,65251.0,1.79633186]
[1721204669023,0.00295398,65252.0,65251.0,1.79633186]
[1721204669322,0.00295398,65252.0,65251.0,1.50382386]
[1721204669524,0.00295398,65252.0,65251.0,1.56782386]
[1721204669962,0.00295398,65252.0,65251.0,1.86033186]
[1721204670118,0.00295398,65252.0,65251.0,1.87433186]
[1721204670525,0.00295398,65252.0,65251.0,2.57432698]
[1721204670773,0.00295398,65252.0,65251.0,2.25381898]
[1721204670973,0.00295398,65252.0,65251.0,2.21781898]
[1721204671176,0.00295398,65252.0,65251.0,2.52432698]
[1721204671383,0.00295398,65252.0,65251.0,2.21781898]
[1721204671595,0.00295398,65252.0,65251.0,1.51781898]
[1721204671819,0.00295398,65252.0,65251.0,1.58181898]
[1721204672228,0.00295398,65252.0,65251.0,1.55381898]
[1721204672441,0.00295398,65252.0,65251.0,1.86032698]
[1721204672696,0.00295398,65252.0,65251.0,1.56781898]
[1721204672821,0.00295398,65252.0,65251.0,1.87432698]
[1721204673044,0.00295398,65252.0,65251.0,2.57432698]
[1721204673261,0.00295398,65252.0,65251.0,2.26781898]
[1721204673433,0.00295398,65252.0,65251.0,1.50381898]
[1721204673638,0.00295398,65252.0,65251.0,1.48981898]
[1721204673847,0.00295398,65252.0,65251.0,1.51781898]
[1721204674065,0.00299398,65252.0,65251.0,1.50381898]
[1721204674377,0.00299398,65252.0,65251.0,1.48981898]
[1721204674757,0.00299398,65252.0,65251.0,1.50381898]
[1721204674984,0.00299398,65252.0,65251.0,0.79080298]
[1721204675192,0.00299398,65252.0,65251.0,0.76780298]
[1721204675391,0.00299398,65252.0,65251.0,0.32204098]
[1721204675601,0.00299398,65252.0,65251.0,0.16765924]
[1721204675602,0.23342077,65252.0,65251.0,0.16765924]
[1721204675803,0.08016877,65252.0,65251.0,0.02640916]
[1721204676004,0.84642877,65252.0,65251.0,0.02640916]
[1721204676223,1.15293277,65252.0,65251.0,0.028]
[1721204676777,1.15293277,65252.0,65251.0,0.03]
[1721204676931,1.15293277,65252.0,65251.0,0.016]
[1721204677132,0.1405,65240.0,65238.0,0.20302878]
[1721204677364,0.1405,65240.0,65239.0,0.153282]
[1721204677562,0.1405,65240.0,65239.0,0.16576056]
[1721204677769,0.1405,65240.0,65239.0,0.01247856]
[1721204677974,0.1405,65240.0,65234.0,0.00212504]
[1721204678143,0.1405,65240.0,65227.0,0.00212504]
[1721204678144,0.07717479,65237.0,65227.0,0.00212504]
[1721204678346,0.153289,65236.0,65231.0,0.00212504]
[1721204678573,0.07717479,65237.0,65227.0,0.15543504]
[1721204678724,0.07717479,65237.0,65226.0,0.04964796]
[1721204678725,0.15331,65227.0,65226.0,0.04964796]
[1721204678973,0.29091,65227.0,65226.0,0.04964796]
[1721204679189,0.1376,65227.0,65216.0,0.05397913]
[1721204679391,0.1376,65227.0,65226.0,0.153313]
[1721204679796,0.1376,65227.0,65226.0,0.1661136]
[1721204680241,0.1346,65227.0,65226.0,0.1661136]
[1721204680440,0.1346,65227.0,65226.0,0.0128006]
[1721204680651,0.441221,65227.0,65226.0,0.0128006]
[1721204680860,0.15332,65223.0,65222.0,0.00212504]
[1721204681088,0.1346,65227.0,65216.0,0.000913]
[1721204681301,0.1346,65227.0,65226.0,0.006]
[1721204681739,0.1346,65227.0,65223.0,0.00212504]
[1721204681947,0.1356,65227.0,65226.0,0.160313]
[1721204682153,0.1336,65227.0,65224.0,0.306634]
[1721204682360,0.1336,65227.0,65222.0,0.006]
[1721204682559,0.1336,65227.0,65226.0,0.003]
[1721204682777,0.1326,65227.0,65223.0,0.023]
[1721204682981,0.1326,65227.0,65224.0,0.00212504]
[1721204683192,0.1326,65227.0,65226.0,0.008]
[1721204683193,0.28691,65227.0,65226.0,0.008]
[1721204683394,0.1336,65227.0,65226.0,0.008]
[1721204683597,0.1336,65227.0,65226.0,0.161313]
[1721204683815,0.1336,65227.0,65226.0,0.490939]
[1721204684257,0.1336,65227.0,65226.0,0.797565]
[1721204684459,0.1336,65227.0,65226.0,0.490939]
[1721204684732,0.1336,65227.0,65226.0,0.803565]
[1721204684978,0.1336,65227.0,65226.0,0.496939]
[1721204685218,0.1326,65227.0,65226.0,0.482939]
[1721204685419,0.1326,65227.0,65226.0,0.798565]
[1721204685420,0.1336,65227.0,65226.0,0.798565]
[1721204685624,0.0569,65227.0,65226.0,0.798565]
[1721204686240,0.0579,65227.0,65226.0,0.806565]
[1721204686442,0.0579,65227.0,65226.0,0.491939]
[1721204686620,0.0579,65227.0,65226.0,0.482939]
[1721204686621,0.0569,65227.0,65226.0,0.482939]
[1721204686836,0.0579,65227.0,65226.0,0.493939]
[1721204686974,0.0579,65227.0,65226.0,0.011]
[1721204687175,0.21121,65227.0,65226.0,0.011]
[1721204687663,0.0579,65227.0,65226.0,0.011]
[1721204688088,0.0579,65227.0,65226.0,0.027]
[1721204688089,0.519831,65227.0,65226.0,0.027]
[1721204688299,0.906752,65227.0,65226.0,0.027]
[1721204688492,0.904752,65227.0,65226.0,0.011]
[1721204688917,0.904752,65227.0,65219.0,0.00212504]
[1721204688918,0.459981,65220.0,65219.0,0.00212504]
[1721204689090,0.29062174,65227.0,65216.0,0.000913]
[1721204689091,0.00064593,65219.0,65216.0,0.000913]
[1721204689293,0.306648,65222.0,65216.0,0.000913]
[1721204689452,0.306645,65222.0,65217.0,0.00212504]
[1721204689698,0.459969,65222.0,65217.0,0.00212504]
[1721204690197,0.153322,65222.0,65217.0,0.00212504]
[1721204690433,0.306638,65224.0,65217.0,0.00212504]
[1721204690647,0.306638,65224.0,65216.0,0.014913]
[1721204690648,0.001,65219.0,65216.0,0.014913]
[1721204690853,0.153334,65217.0,65216.0,0.014913]
[1721204691052,0.460002,65217.0,65216.0,0.014913]
[1721204691314,0.82737,65217.0,65216.0,0.014913]
[1721204691890,0.90867,65217.0,65216.0,0.025913]
[1721204692091,1.215338,65217.0,65216.0,0.025913]
[1721204692598,1.215338,65217.0,65216.0,0.011913]
[1721204693059,0.142,65217.0,65216.0,0.011913]
[1721204693683,0.90867,65217.0,65216.0,0.011913]
[1721204693884,0.90867,65217.0,65216.0,0.000913]
[1721204693885,0.602002,65217.0,65216.0,0.000913]
[1721204694123,0.609002,65217.0,65216.0,0.014913]
[1721204694319,0.91667,65217.0,65216.0,0.014913]
[1721204694702,0.91567,65217.0,65216.0,0.001913]
[1721204694904,0.91567,65217.0,65216.0,0.002913]
[1721204694905,0.92267,65217.0,65216.0,0.002913]
[1721204695279,1.229338,65217.0,65216.0,0.002913]
[1721204695481,1.38371974,65217.0,65216.0,0.002913]
[1721204697672,0.309334,65217.0,65216.0,0.002913]
[1721204698080,0.616002,65217.0,65216.0,0.002913]
[1721204698971,0.92267,65217.0,65216.0,0.002913]
[1721204700402,1.38371974,65217.0,65216.0,0.002913]
[1721204702044,1.79038774,65217.0,65216.0,0.002913]
[1721204702639,1.48371974,65217.0,65216.0,0.002913]
[1721204703079,1.79038774,65217.0,65216.0,0.002913]
[1721204703471,1.48371974,65217.0,65216.0,0.002913]
[1721204704000,1.329338,65217.0,65216.0,0.002913]
[1721204704832,1.94473731,65217.0,65216.0,0.002913]
[1721204704948,1.99473731,65217.0,65216.0,0.002913]
[1721204705392,0.153395,65191.0,65187.0,0.00212504]
[1721204705605,0.0605,65192.0,65188.0,0.04979724]
[1721204705921,0.4798,65200.0,65193.0,0.00212504]
[1721204706089,0.153377,65199.0,65193.0,0.15339]
[1721204706297,0.4798,65200.0,65189.0,0.15438174]
[1721204706498,0.153376,65199.0,65194.0,0.153387]
[1721204706697,0.001,65191.0,65189.0,0.15438174]
[1721204706873,0.001,65191.0,65190.0,0.483192]
[1721204707102,0.001,65191.0,65190.0,0.023]
[1721204707103,0.002,65191.0,65190.0,0.023]
[1721204707302,0.002,65191.0,65188.0,0.023]
[1721204707303,0.155396,65191.0,65188.0,0.023]
[1721204707511,0.155396,65191.0,65177.0,0.009163]
[1721204707512,0.07717479,65190.0,65180.0,0.306841]
[1721204707718,0.07717479,65190.0,65177.0,0.0588686]
[1721204707719,0.07717479,65183.0,65177.0,0.0588686]
[1721204707920,0.460249,65182.0,65178.0,0.00212504]
[1721204708245,0.460249,65182.0,65177.0,0.009163]
[1721204708996,0.767082,65182.0,65177.0,0.009163]
[1721204709199,1.073915,65182.0,65177.0,0.009163]
[1721204709614,0.76713,65178.0,65177.0,0.009163]
[1721204709827,0.76713,65178.0,65173.0,0.009163]
[1721204709828,0.460305,65174.0,65173.0,0.009163]
[1721204710061,1.97659674,65174.0,65173.0,0.009163]
[1721204710242,1.97659674,65174.0,65153.0,0.01128804]
[1721204710243,0.460398,65161.0,65153.0,0.009163]
[1721204710491,0.76733,65161.0,65153.0,0.009163]
[1721204711415,1.37324374,65161.0,65153.0,0.009163]
[1721204711622,1.78017574,65161.0,65153.0,0.009163]
[1721204712036,0.604998,65161.0,65160.0,0.010163]
[1721204712233,0.219366,65161.0,65160.0,0.010163]
[1721204712637,0.526298,65161.0,65160.0,0.010163]
[1721204712893,0.527298,65161.0,65160.0,0.017163]
[1721204713087,0.0669,65161.0,65160.0,0.017163]
[1721204713267,0.001,65161.0,65160.0,0.477567]
[1721204713467,0.001,65161.0,65160.0,0.016163]
[1721204713646,0.001,65161.0,65160.0,0.022163]
[1721204713647,0.461398,65161.0,65160.0,0.022163]
[1721204713863,0.002,65161.0,65160.0,0.022163]
[1721204714184,0.002,65161.0,65160.0,0.045163]
[1721204714385,0.002,65161.0,65160.0,0.352099]
[1721204714588,0.002,65161.0,65160.0,0.65994874]
[1721204714791,0.002,65161.0,65160.0,0.96688474]
[1721204714950,0.002,65161.0,65160.0,1.35222074]
[1721204715151,0.002,65161.0,65160.0,1.46882074]
[1721204715457,0.002,65161.0,65160.0,1.77575674]
[1721204715660,0.002,65161.0,65160.0,1.87575674]
[1721204715861,0.009,65174.0,65173.0,1.124062]
[1721204716083,0.009,65174.0,65173.0,1.54064374]
[1721204716255,0.4798,65183.0,65182.0,0.767082]
[1721204716453,0.4798,65183.0,65182.0,1.25129674]
[1721204717969,0.4798,65183.0,65182.0,0.94446374]
[1721204718177,0.4798,65183.0,65182.0,1.25129674]
[1721204718367,0.4798,65183.0,65182.0,1.26129674]
[1721204718572,0.4798,65183.0,65182.0,1.31129674]
[1721204718778,0.4798,65183.0,65182.0,1.32529674]
[1721204718978,0.306734,65203.0,65182.0,1.32529674]
[1721204718979,0.4798,65200.0,65199.0,0.153376]
[1721204719089,0.07717479,65206.0,65200.0,0.329748]
[1721204719090,0.46304871,65205.0,65200.0,0.329748]
[1721204719296,0.46304871,65205.0,65200.0,0.023]
[1721204719297,0.153371,65201.0,65200.0,0.023]
[1721204719823,0.153371,65201.0,65182.0,0.14]
[1721204719824,0.153365,65204.0,65198.0,0.153378]
[1721204720030,0.07717479,65199.0,65198.0,0.306757]
[1721204720234,0.07717479,65199.0,65198.0,0.483135]
[1721204720532,0.07717479,65199.0,65198.0,0.789892]
[1721204720883,0.306697,65211.0,65198.0,0.789892]
[1721204720884,0.298744,65213.0,65198.0,0.17738174]
[1721204721133,0.07717479,65207.0,65206.0,0.15336]
[1721204721628,0.4798,65210.0,65209.0,0.766765]
[1721204721891,0.4798,65223.0,65213.0,0.306687]
[1721204722128,4e-05,65227.0,65214.0,0.15438174]
[1721204722129,0.07717479,65220.0,65214.0,0.15438174]
[1721204722350,4e-05,65227.0,65221.0,0.153323]
[1721204722351,0.07717479,65222.0,65221.0,0.153323]
[1721204722578,0.07717479,65222.0,65221.0,0.63735174]
[1721204722841,0.07717479,65222.0,65221.0,0.023]
[1721204723089,0.07717479,65222.0,65219.0,0.306658]
[1721204723351,0.07717479,65222.0,65218.0,0.023]
[1721204723352,0.153329,65219.0,65218.0,0.023]
[1721204723577,0.07717479,65222.0,65214.0,0.004]
[1721204723802,0.07717479,65215.0,65214.0,0.157341]
[1721204724031,0.306665,65227.0,65221.0,0.153323]
[1721204724032,4e-05,65227.0,65221.0,0.153323]
[1721204724246,4e-05,65227.0,65214.0,0.18138174]
[1721204724247,0.07717479,65219.0,65218.0,0.153331]
[1721204724493,0.07717479,65219.0,65218.0,0.482994]
[1721204725161,4e-05,65227.0,65218.0,0.17738174]
[1721204725390,4e-05,65227.0,65226.0,0.153313]
[1721204725720,0.00104,65227.0,65226.0,0.766565]
[1721204725965,0.00104,65227.0,65226.0,1.25057274]
[1721204726215,4e-05,65227.0,65226.0,0.482939]
[1721204726447,4e-05,65227.0,65226.0,0.94394674]
[1721204726695,4e-05,65227.0,65226.0,1.25057274]
[1721204727863,4e-05,65227.0,65226.0,1.45057274]
[1721204728359,4e-05,65227.0,65226.0,1.61382474]
[1721204728597,4e-05,65227.0,65226.0,1.87913774]
[1721204728815,4e-05,65227.0,65226.0,2.47116374]
[1721204729048,4e-05,65227.0,65226.0,2.51326374]
[1721204729259,0.00064593,65244.0,65226.0,2.51326374]
[1721204729260,0.00064593,65244.0,65243.0,1.412411]
[1721204729467,0.46304871,65248.0,65243.0,1.412411]
[1721204729468,0.46304871,65248.0,65247.0,0.766317]
[1721204729672,0.07717479,65259.0,65251.0,0.459762]
[1721204729873,0.07717479,65259.0,65251.0,0.92065174]
[1721204730504,0.07717479,65259.0,65251.0,0.94365174]
[1721204730718,0.07717479,65259.0,65251.0,0.023]
[1721204730924,0.07717479,65259.0,65251.0,0.153254]
[1721204731128,0.00299398,65252.0,65251.0,1.25015974]
[1721204731602,0.153259,65249.0,65243.0,0.243671]
[1721204731833,0.00299398,65252.0,65244.0,0.482811]
[1721204731834,0.07717479,65245.0,65244.0,0.482811]
[1721204732272,0.07717479,65245.0,65244.0,0.023]
[1721204732483,0.07717479,65245.0,65236.0,0.0806]
[1721204732484,0.153273,65243.0,65242.0,0.023]
[1721204732684,0.07717479,65245.0,65234.0,0.35562954]
[1721204732685,0.306542,65244.0,65234.0,0.04904454]
[1721204732885,0.07717479,65245.0,65235.0,0.46096474]
[1721204732886,0.00064593,65242.0,65235.0,0.46096474]
[1721204733102,0.07717479,65238.0,65235.0,0.15438174]
[1721204733572,0.23045979,65238.0,65232.0,0.153298]
[1721204733780,0.23045979,65238.0,65232.0,0.15438174]
[1721204733990,0.23045979,65238.0,65233.0,0.306592]
[1721204733991,0.07717479,65238.0,65233.0,0.306592]
[1721204734196,0.07717479,65238.0,65233.0,0.153296]
[1721204734452,0.07717479,65238.0,65232.0,0.15438174]
[1721204734453,0.306578,65237.0,65232.0,0.15438174]
[1721204734862,0.306578,65237.0,65233.0,0.023]
[1721204735078,0.153293,65235.0,65233.0,0.023]
[1721204735299,0.306578,65237.0,65233.0,0.023]
[1721204735300,0.153287,65237.0,65235.0,0.014]
[1721204735517,0.153287,65237.0,65236.0,0.023]
[1721204735518,0.153288,65237.0,65236.0,0.023]
[1721204735743,0.07717479,65238.0,65236.0,0.023]
[1721204735955,0.23046079,65238.0,65236.0,0.023]
[1721204736406,0.153294,65234.0,65233.0,0.003]
[1721204736619,0.76647,65234.0,65233.0,0.003]
[1721204736836,1.073058,65234.0,65233.0,0.003]
[1721204737048,0.153309,65228.0,65222.0,0.153321]
[1721204737279,0.0656,65236.0,65222.0,0.153321]
[1721204737280,0.153311,65227.0,65222.0,0.153321]
[1721204737513,0.153311,65227.0,65220.0,0.306653]
[1721204737767,0.153311,65227.0,65222.0,0.153321]
[1721204738004,0.153311,65227.0,65214.0,0.0754]
[1721204738005,0.153327,65220.0,65214.0,0.153339]
[1721204738235,0.07717479,65223.0,65215.0,0.17738174]
[1721204738236,0.306651,65221.0,65215.0,0.17738174]
[1721204738465,0.460023,65214.0,65213.0,0.04986316]
[1721204738704,0.153341,65214.0,65213.0,0.04986316]
[1721204738927,0.460023,65214.0,65213.0,0.04986316]
[1721204739144,0.38384779,65216.0,65207.0,0.153356]
[1721204739387,0.38384779,65216.0,65200.0,0.306748]
[1721204739388,0.07717479,65209.0,65200.0,0.20299287]
[1721204739607,0.07717479,65209.0,65200.0,0.51074661]
[1721204739810,0.153359,65207.0,65200.0,0.66411861]
[1721204740054,0.15336,65206.0,65200.0,0.66411861]
[1721204740440,0.153358,65207.0,65201.0,0.153371]
[1721204740652,0.306711,65208.0,65200.0,0.15438174]
[1721204740949,0.07717479,65202.0,65192.0,0.19215272]
[1721204741163,0.07717479,65202.0,65194.0,0.153388]
[1721204741164,0.153377,65199.0,65194.0,0.153388]
[1721204741372,0.153379,65198.0,65195.0,0.15438174]
[1721204741580,0.07717479,65202.0,65195.0,0.31712317]
[1721204741780,0.07717479,65202.0,65200.0,0.003]
[1721204741781,0.460115,65201.0,65200.0,0.003]
[1721204742010,0.153372,65201.0,65200.0,0.003]
[1721204742231,0.153372,65201.0,65200.0,0.01233574]
[1721204742438,0.460107,65203.0,65200.0,0.003]
[1721204742687,0.4798,65210.0,65200.0,0.00933574]
[1721204742913,0.4798,65210.0,65202.0,0.153367]
[1721204742914,0.153357,65208.0,65202.0,0.153367]
[1721204743157,0.633151,65210.0,65204.0,0.153363]
[1721204743391,0.633151,65210.0,65205.0,0.153362]
[1721204743607,0.633151,65210.0,65205.0,0.00931506]
[1721204744078,0.633151,65210.0,65204.0,0.153363]
[1721204744303,0.38388279,65209.0,65206.0,0.00931092]
[1721204744549,0.153357,65207.0,65206.0,0.00931092]
[1721204744788,0.07717479,65209.0,65207.0,0.00930679]
[1721204744992,0.07717479,65209.0,65204.0,0.153363]
[1721204744993,0.153357,65208.0,65206.0,0.00931092]